bitfinex-derivatives/quotes_ETHF0:USTF0_20250205
["timestamp","ask_amount","ask_price","bid_price","bid_amount"]
[1738743853483,1.1301,2764.5,2764.0,3.2078]
[1738743853682,1.7069,2764.5,2764.0,3.2078]
[1738743856481,1.7069,2764.5,2763.8,3.9150921]
[1738743856685,1.7069,2764.5,2764.0,3.2078]
[1738743857383,1.1659,2764.5,2764.0,3.2078]
[1738743858791,1.1659,2764.5,2764.0,6.1858]
[1738743858991,1.7144,2764.5,2764.0,6.1858]
[1738743859982,1.1659,2764.5,2764.0,6.1858]
[1738743862681,3.2078,2764.6,2764.0,6.1858]
[1738743863483,5.36675929,2764.9,2764.0,6.1858]
[1738743864181,5.36675929,2764.9,2764.1,3.9150921]
[1738743864584,5.36675929,2764.9,2764.2,0.5666]
[1738743864784,5.36675929,2764.9,2764.3,0.5731]
[1738743865483,5.36675929,2764.9,2764.3,3.7809]
[1738743867393,2.15895929,2764.9,2764.3,3.7809]
[1738743867896,2.15895929,2764.9,2764.3,10.6739921]
[1738743868997,5.36675929,2764.9,2764.3,10.6739921]
[1738743873698,2.15895929,2764.9,2764.3,10.6739921]
[1738743873998,5.36675929,2764.9,2764.3,10.6739921]
[1738743874199,2.15895929,2764.9,2764.3,10.6739921]
[1738743876801,0.00541947,2764.9,2764.3,10.6739921]
[1738743878993,2.15895929,2764.9,2764.3,10.6739921]
[1738743879200,2.15353982,2764.6,2764.3,10.6739921]
[1738743879397,0.5615,2764.5,2764.3,10.6739921]
[1738743879598,0.5615,2764.5,2764.3,6.7589]
[1738743880101,0.5819,2764.4,2764.3,6.1858]
[1738743881800,0.5615,2764.5,2764.3,6.1858]
[1738743885507,0.5615,2764.5,2764.3,3.2078]
[1738743886505,2.15353982,2764.6,2764.3,3.2078]
[1738743890102,1.0953,2764.8,2764.3,3.2078]
[1738743891412,1.0953,2764.8,2764.3,6.1858]
[1738743892214,2.15353982,2764.6,2764.3,6.1858]
[1738743892413,5.36133982,2764.6,2764.3,2.978]
[1738743892712,0.556,2764.5,2764.3,2.978]
[1738743896814,5.36133982,2764.6,2764.3,2.978]
[1738743901415,0.5479,2764.5,2764.3,2.978]
[1738743902717,5.36133982,2764.6,2764.3,2.978]
[1738743906124,3.2078,2764.6,2764.3,2.978]
[1738743909324,3.2078,2764.6,2764.3,6.8930921]
[1738743912628,5.36133982,2764.6,2764.3,6.8930921]
[1738743913015,0.5613,2764.5,2764.3,6.8930921]
[1738743914125,3.2078,2764.6,2764.3,6.8930921]
[1738743914517,0.548,2764.8,2764.3,6.8930921]
[1738743915325,0.548,2764.8,2764.3,2.978]
[1738743915724,5.36675929,2764.9,2764.3,2.978]
[1738743916124,3.21321947,2764.9,2764.3,6.1858]
[1738743916322,3.21321947,2764.9,2764.4,3.9150921]
[1738743916522,3.21321947,2764.9,2764.5,0.5825]
[1738743916925,3.27483982,2765.8,2764.6,10.1008921]
[1738743917223,2.15353982,2765.2,2764.7,6.8930921]
[1738743917428,1.6645,2765.1,2764.7,2.978]
[1738743917627,2.15353982,2764.9,2764.5,0.5825]
[1738743917831,2.15353982,2764.6,2764.4,3.2078]
[1738743918030,1.1151,2764.5,2764.4,3.21321947]
[1738743918234,4.8723,2764.5,2764.4,0.00541947]
[1738743919132,9.93024842,2764.5,2763.4,7.1228921]
[1738743919334,5.36133982,2764.0,2763.4,3.7873]
[1738743919530,1.1291,2763.9,2763.4,3.7873]
[1738743919731,1.1291,2763.9,2763.4,0.5795]
[1738743919934,3.2078,2763.7,2763.4,0.5795]
[1738743920232,2.15353982,2763.6,2763.1,0.5373]
[1738743921326,2.15353982,2763.6,2762.6,3.2078]
[1738743921536,5.36133982,2763.3,2762.7,5.0266921]
[1738743921728,1.1413,2763.2,2762.7,5.0266921]
[1738743922431,1.7139,2763.2,2762.7,1.1116]
[1738743924027,2.15353982,2763.0,2762.6,3.2078]
[1738743924223,2.15353982,2762.7,2762.2,3.2078]
[1738743924427,1.6954,2762.6,2761.9,7.7013921]
[1738743924626,2.15353982,2762.4,2761.9,7.7013921]
[1738743924840,2.15353982,2762.1,2761.4,3.2078]
[1738743925234,3.7622,2762.0,2761.4,3.2078]
[1738743925436,3.2078,2762.0,2761.4,3.2078]
[1738743925734,0.00542967,2762.0,2761.4,5.36133982]
[1738743926040,0.00542967,2762.0,2761.7,5.36133982]
[1738743926439,0.00542967,2762.0,2761.7,9.27643192]
[1738743926738,0.00542967,2762.0,2761.8,3.9150921]
[1738743926939,0.00542967,2762.0,2761.9,0.5344]
[1738743927141,0.00542967,2762.0,2761.9,1.102]
[1738743928943,0.00542967,2762.0,2761.9,0.5676]
[1738743932852,0.00542967,2762.0,2761.9,7.4606921]
[1738743935155,0.5393,2763.0,2761.9,12.4606921]
[1738743935448,2.15353982,2763.6,2762.9,3.2078]
[1738743935653,0.5624,2763.5,2762.9,6.1858]
[1738743936251,0.56782967,2763.5,2762.9,6.19122967]
[1738743937252,0.00542967,2763.5,2762.9,6.19122967]
[1738743937561,0.00542967,2763.5,2763.2,3.2078]
[1738743939455,0.00542967,2763.5,2762.9,6.19122967]
[1738743939652,2.15353982,2763.3,2762.9,6.19122967]
[1738743939855,2.15353982,2763.0,2762.3,3.2078]
[1738743940056,2.15353982,2762.7,2762.3,3.2078]
[1738743940258,0.547,2762.6,2762.3,3.2078]
[1738743940959,2.15353982,2762.4,2762.3,3.2078]
[1738743942256,0.547,2762.6,2762.3,3.2078]
[1738743942458,2.15353982,2763.3,2762.4,2.15353982]
[1738743942651,5.36133982,2763.3,2762.6,3.2078]
[1738743942852,2.15353982,2763.3,2762.6,3.2078]
[1738743943261,3.25833982,2763.3,2762.6,3.2078]
[1738743944769,6.46613982,2763.3,2762.6,3.2078]
[1738743945352,6.46613982,2763.3,2762.7,3.2078]
[1738743945558,4.3126,2763.3,2762.7,3.2078]
[1738743946165,4.3126,2763.3,2762.7,5.36133982]
[1738743947565,3.77,2763.3,2762.7,5.36133982]
[1738743948259,3.2078,2763.3,2762.8,2.978]
[1738743952365,5.36133982,2763.0,2762.3,3.2078]
[1738743952566,0.5862,2762.9,2762.3,3.2078]
[1738743952769,0.5739,2762.8,2762.3,3.2078]
[1738743952963,2.15353982,2762.7,2762.3,3.2078]
[1738743953566,0.5739,2762.8,2762.3,3.2078]
[1738743954169,2.15353982,2762.7,2762.3,3.2078]
[1738743955469,2.15353982,2762.4,2762.3,3.2078]
[1738743958572,2.15353982,2762.4,2761.8,3.2078]
[1738743958871,1.1501,2762.3,2761.8,3.2078]
[1738743960170,2.15353982,2762.1,2761.6,2.978]
[1738743960367,0.5867,2762.0,2761.6,2.978]
[1738743961475,0.00542967,2762.1,2761.7,3.2078]
[1738743961672,0.00542967,2762.1,2761.8,0.5408]
[1738743966179,0.00542967,2762.1,2761.7,3.2078]
[1738743966574,0.00542967,2762.1,2761.8,0.5472]
[1738743966981,0.00542967,2762.1,2761.9,0.5835]
[1738743968077,0.00542967,2762.1,2762.0,10.1008921]
[1738743968380,0.5768,2762.8,2762.0,10.1008921]
[1738743968680,2.15353982,2763.0,2762.1,6.06863192]
[1738743968875,2.15353982,2763.0,2762.3,3.2078]
[1738743969483,0.00542967,2762.9,2762.4,0.00542967]
[1738743971672,3.2078,2762.8,2762.4,0.00542967]
[1738743972776,0.5532,2762.7,2762.4,0.00542967]
[1738743973479,0.5823,2762.6,2762.4,0.00542967]
[1738743975085,3.2078,2762.8,2762.4,0.00542967]
[1738743975386,3.2078,2762.8,2762.4,2.98342967]
[1738743975584,0.00542967,2762.9,2762.5,3.7548]
[1738743979481,0.00542967,2762.9,2762.8,3.2078]
[1738743979682,0.00542967,2762.9,2762.8,6.1858]
[1738743983792,3.2078,2763.5,2762.8,6.1858]
[1738743984088,3.2078,2763.5,2762.9,0.294]
[1738743984886,3.21322967,2763.5,2762.9,0.294]
[1738743985083,3.21322967,2763.5,2763.0,2.15353982]
[1738743985285,0.00542967,2763.5,2763.2,3.2078]
[1738743985587,0.00542967,2763.5,2763.3,2.978]
[1738743987081,0.00542967,2763.5,2763.3,3.5163]
[1738743988287,1.65672967,2763.5,2763.3,3.5163]
[1738743992089,1.65672967,2763.5,2763.3,2.978]
[1738743992393,3.2078,2763.4,2762.9,3.2078]
[1738743992690,2.15353982,2763.3,2762.9,3.2078]
[1738743993886,2.15353982,2763.3,2762.8,2.978]
[1738743994993,2.15353982,2763.0,2762.8,2.978]
[1738743995290,1.6569,2762.9,2762.4,0.00542967]
[1738743998393,1.6569,2762.9,2762.4,2.98342967]
[1738744000293,1.0803,2762.9,2762.4,2.98342967]
[1738744000493,0.5501,2763.2,2762.6,3.2078]
[1738744000888,0.5501,2763.2,2762.7,0.5689]
[1738744001089,0.5501,2763.2,2762.8,0.5793]
[1738744001691,1.1119,2763.3,2762.8,3.5573]
[1738744002299,1.1119,2763.3,2762.9,3.2078]
[1738744003389,0.00542967,2763.5,2762.9,3.2078]
[1738744003594,0.00542967,2763.5,2763.0,2.978]
[1738744005401,0.00542967,2763.5,2763.0,6.8930921]
[1738744005699,0.00542967,2763.5,2763.2,3.2078]
[1738744006197,0.00542967,2763.5,2763.3,9.60203192]
[1738744006399,0.00542967,2763.5,2763.4,0.5571]
[1738744006592,0.00542967,2763.5,2763.3,7.4484921]
[1738744008798,0.00542967,2763.5,2763.3,5.68693982]
[1738744009000,3.2078,2764.3,2763.4,3.9150921]
[1738744009198,3.2078,2764.3,2763.6,3.2078]
[1738744009398,3.2078,2764.3,2763.7,0.5654]
[1738744010203,3.21322967,2764.3,2763.7,0.5654]
[1738744010704,0.00542967,2764.3,2763.9,3.2078]
[1738744011204,0.00542967,2764.3,2763.8,0.00542967]
[1738744012305,0.00542967,2764.3,2763.8,0.56692967]
[1738744013207,0.00542967,2764.3,2763.8,4.48202177]
[1738744014504,2.15896949,2764.3,2763.8,4.48202177]
[1738744014705,5.36676949,2764.3,2763.8,4.48202177]
[1738744015011,2.15353982,2764.0,2763.8,3.92052177]
[1738744015307,3.21322967,2764.3,2763.8,3.92052177]
[1738744015308,5.36676949,2764.3,2763.8,3.92052177]
[1738744015510,0.5872,2764.2,2763.8,3.92052177]
[1738744015708,0.00542967,2764.3,2763.9,0.5847]
[1738744015911,0.00542967,2764.3,2764.0,0.5824]
[1738744016102,0.00542967,2764.3,2764.0,3.5604]
[1738744020124,0.00542967,2764.3,2764.0,7.4754921]
[1738744021323,0.00542967,2764.3,2764.2,3.2078]
[1738744026420,0.00542967,2764.3,2764.1,2.978]
[1738744027829,2.15896949,2764.3,2764.1,2.978]
[1738744030835,7.15896949,2764.3,2763.8,0.00542967]
[1738744031033,2.15353982,2764.0,2763.8,0.00542967]
[1738744031223,1.1289,2763.9,2763.8,0.00542967]
[1738744031536,2.15353982,2763.6,2763.4,2.978]
[1738744034235,3.2078,2763.7,2763.4,2.978]
[1738744042939,3.2078,2763.7,2763.2,3.53922967]
[1738744044144,3.2078,2763.7,2763.2,0.56122967]
[1738744045343,2.15353982,2763.6,2763.2,0.56122967]
[1738744045938,2.15353982,2763.3,2763.2,0.00542967]
[1738744046541,3.26393982,2763.3,2763.2,0.00542967]
[1738744047539,8.26393982,2763.3,2763.2,0.00542967]
[1738744047735,8.84274982,2763.3,2763.2,0.00542967]
[1738744047937,3.84274982,2763.3,2762.6,0.5865]
[1738744048138,5.36133982,2763.0,2762.6,0.5865]
[1738744051045,0.5823,2762.9,2762.6,0.5865]
[1738744051642,0.5547,2762.8,2762.6,0.5865]
[1738744052137,0.5616,2762.7,2762.6,0.5865]
[1738744052335,2.71513982,2762.7,2762.5,0.00542967]
[1738744052739,3.2078,2762.6,2762.5,0.00542967]
[1738744053341,3.2078,2762.6,2761.7,4.874]
[1738744053342,8.2078,2762.6,2761.5,3.2078]
[1738744053547,3.29408982,2762.7,2761.5,3.2078]
[1738744053548,2.15353982,2762.1,2761.5,3.2078]
[1738744053741,0.5711,2762.0,2761.5,3.2078]
[1738744053943,1.1176,2762.0,2761.5,3.2078]
[1738744054549,0.5711,2762.0,2761.5,3.2078]
[1738744055243,2.15353982,2762.1,2761.5,3.2078]
[1738744055944,2.15353982,2762.4,2761.5,3.2078]
[1738744056150,2.15353982,2762.4,2761.6,0.31]
[1738744056442,2.15353982,2762.4,2761.8,3.2078]
[1738744056650,3.2078,2762.5,2761.8,3.2078]
[1738744056944,2.70003982,2762.7,2762.1,3.2078]
[1738744056945,2.15353982,2762.7,2762.1,3.2078]
[1738744057146,2.15353982,2762.7,2762.2,0.588]
[1738744057147,2.68473982,2762.7,2762.2,0.588]
[1738744057350,3.2078,2762.8,2762.2,0.588]
[1738744057541,0.00542967,2762.9,2762.4,3.2078]
[1738744058047,0.00542967,2762.9,2762.5,0.5492]
[1738744059444,0.54482967,2762.9,2762.5,0.5492]
[1738744060447,3.2078,2762.8,2762.5,0.5492]
[1738744060649,0.5554,2762.7,2762.5,0.5492]
[1738744061542,0.5554,2762.7,2762.2,0.588]
[1738744061543,2.70893982,2762.7,2762.2,0.588]
[1738744063255,0.00542967,2762.9,2762.2,0.588]
[1738744063454,0.00542967,2762.9,2762.4,3.2078]
[1738744063656,0.00542967,2762.9,2762.5,2.15353982]
[1738744064053,0.00542967,2762.9,2762.6,0.5567]
[1738744066959,0.00542967,2762.9,2762.7,3.2078]
[1738744067154,19.16118016,2763.6,2762.8,0.5586]
[1738744068064,3.2078,2763.5,2762.8,0.5586]
[1738744068257,0.5879,2763.4,2762.9,0.00542967]
[1738744068457,2.69573982,2763.3,2762.9,0.00542967]
[1738744068864,3.2078,2763.2,2762.9,0.00542967]
[1738744069748,2.69573982,2763.3,2762.9,0.00542967]
[1738744070759,3.2078,2763.2,2762.9,0.00542967]
[1738744077561,0.5422,2763.3,2762.9,0.00542967]
[1738744087567,2.69573982,2763.3,2762.9,0.00542967]
[1738744095471,3.2078,2763.2,2762.9,0.00542967]
[1738744097970,3.2078,2763.2,2761.8,2.46333982]
[1738744097971,2.15353982,2763.0,2762.2,4.874]
[1738744098274,2.15353982,2762.7,2762.1,3.2078]
[1738744098468,1.0974,2762.6,2762.1,3.2078]
[1738744099075,2.15353982,2762.4,2762.1,3.2078]
[1738744099275,1.0974,2762.6,2762.1,3.2078]
[1738744099475,0.5318,2762.6,2762.1,3.2078]
[1738744099776,3.2078,2762.8,2762.1,3.2078]
[1738744099978,3.2078,2762.8,2762.2,4.874]
[1738744102175,1.1198,2762.9,2762.2,4.874]
[1738744103074,0.5486,2762.9,2762.4,3.2078]
[1738744103274,0.5486,2762.9,2762.5,0.5408]
[1738744103476,0.5486,2762.9,2762.5,1.1152]
[1738744105374,3.2078,2763.2,2762.5,4.0932]
[1738744105579,0.5808,2763.4,2762.7,5.36133982]
[1738744105779,3.21322967,2763.5,2762.8,2.978]
[1738744106483,0.00542967,2763.5,2763.0,3.2078]
[1738744106686,0.00542967,2763.5,2763.1,1.1397]
[1738744106875,0.00542967,2763.5,2763.1,4.1177]
[1738744108883,3.21322967,2763.5,2763.1,4.1177]
[1738744109183,1.7286,2763.4,2763.1,2.978]
[1738744110283,3.2078,2763.2,2763.1,2.978]
[1738744110782,44.0078,2763.2,2763.1,2.978]
[1738744111284,44.0078,2763.2,2762.8,0.5812]
[1738744111477,3.2078,2763.2,2762.8,0.5812]
[1738744112179,3.2078,2763.2,2762.6,3.2078]
[1738744112578,3.2078,2763.2,2762.1,4.874]
[1738744112579,2.15353982,2762.7,2762.1,4.874]
[1738744112778,2.15353982,2762.7,2762.0,3.2078]
[1738744112779,4.8637,2762.6,2762.0,3.2078]
[1738744112976,2.15353982,2762.4,2762.0,3.2078]
[1738744114384,4.8637,2762.6,2762.0,3.2078]
[1738744114681,1.1021,2762.6,2762.0,3.2078]
[1738744115080,1.1021,2762.6,2762.0,3.5228]
[1738744115394,18.30961212,2762.9,2762.4,3.2078]
[1738744115577,0.5536,2762.8,2762.5,1.1597]
[1738744116184,0.5536,2762.8,2762.1,3.2078]
[1738744116383,0.5536,2762.8,2762.2,1.1558]
[1738744120391,0.5536,2762.8,2762.4,3.2078]
[1738744120889,2.15353982,2762.7,2762.1,3.2078]
[1738744121785,2.15353982,2762.4,2762.0,0.5307]
[1738744121992,1.6878,2762.3,2762.0,0.5307]
[1738744122586,5.36133982,2762.1,2761.5,8.0818]
[1738744122977,3.21322967,2762.1,2761.5,8.0818]
[1738744123185,3.21322967,2762.1,2761.5,10.23533982]
[1738744123384,0.00542967,2762.1,2761.8,3.2078]
[1738744125092,0.00542967,2762.1,2761.5,10.23533982]
[1738744125888,0.00542967,2762.1,2761.8,3.2078]
[1738744126189,0.00542967,2762.1,2761.9,1.1003]
[1738744126791,0.00542967,2762.1,2761.8,3.2078]
[1738744127988,2.15896949,2762.1,2761.8,3.2078]
[1738744128189,0.5698,2762.0,2761.8,3.2078]
[1738744128484,0.5698,2762.0,2760.8,3.2078]
[1738744128485,0.57912,2761.9,2760.8,3.2078]
[1738744128691,2.15353982,2760.9,2760.5,3.2078]
[1738744128897,2.15353982,2760.6,2760.5,3.2078]
[1738744129483,5.36133982,2760.6,2760.0,0.5491]
[1738744129690,5.36133982,2760.3,2759.7,3.2078]
[1738744129884,2.15353982,2760.0,2759.3,3.2078]
[1738744130285,2.15353982,2760.0,2759.6,3.2078]
[1738744130887,5.36133982,2760.0,2759.6,3.2078]
[1738744132789,2.15353982,2760.0,2759.6,3.2078]
[1738744133391,2.15353982,2760.3,2759.6,3.2078]
[1738744133690,2.15353982,2760.3,2759.9,3.2078]
[1738744133899,2.15353982,2760.3,2760.0,0.5667]
[1738744134092,4.45522967,2760.6,2760.0,5.4407]
[1738744134093,5.36676949,2760.6,2760.0,5.4407]
[1738744134290,5.36676949,2760.6,2760.0,5.9823]
[1738744135499,2.15353982,2760.3,2760.0,5.9823]
[1738744136691,5.36676949,2760.6,2760.0,5.9823]
[1738744137086,2.15896949,2760.6,2760.2,3.2078]
[1738744137295,0.00542967,2760.6,2760.2,3.2078]
[1738744137493,0.00542967,2760.6,2760.5,3.2078]
[1738744137797,0.5867,2762.0,2760.5,13.0818]
[1738744137798,2.15353982,2761.5,2760.5,13.0818]
[1738744138094,2.15353982,2761.5,2760.9,3.2078]
[1738744138592,2.15353982,2761.5,2761.0,0.5666]
[1738744138892,0.00542967,2761.5,2761.0,0.5666]
[1738744140794,0.00542967,2761.5,2761.0,1.1271]
[1738744143401,0.00542967,2761.5,2761.2,3.2078]
[1738744143797,0.00542967,2761.5,2761.2,10.23533982]
[1738744143995,2.15353982,2762.1,2761.3,4.874]
[1738744144194,3.2078,2762.3,2761.6,3.2078]
[1738744144398,3.2078,2762.3,2761.7,0.5402]
[1738744145100,3.21322967,2762.3,2761.7,5.4142]
[1738744146801,0.00542967,2762.3,2761.9,3.2078]
[1738744151702,0.00542967,2762.3,2761.9,8.0818]
[1738744155801,0.00542967,2762.3,2761.9,3.2078]
[1738744160210,0.54212967,2762.3,2761.9,3.2078]
[1738744164412,0.00542967,2762.3,2762.2,3.2078]
[1738744174427,0.00542967,2762.3,2762.2,8.0818]
[1738744174833,0.00542967,2762.3,2762.2,9.2554]
[1738744175626,17.06761212,2762.9,2762.2,14.2554]
[1738744175823,10.79806106,2762.9,2762.8,5.36133982]
[1738744176029,10.79806106,2762.9,2762.8,10.23533982]
[1738744176232,1.0974,2764.2,2762.8,16.50186798]
[1738744176528,3.2078,2764.6,2762.8,16.50186798]
[1738744176529,3.2078,2764.6,2764.0,3.2078]
[1738744176831,3.2078,2764.6,2764.1,0.5364]
[1738744177024,0.00542967,2764.6,2764.3,3.2078]
[1738744177226,0.00542967,2764.6,2764.3,5.36133982]
[1738744177727,0.00542967,2764.6,2764.4,4.874]
[1738744178227,0.00542967,2764.6,2764.4,9.874]
[1738744178424,0.00542967,2764.6,2764.4,4.874]
[1738744178630,0.00542967,2764.6,2764.3,3.2078]
[1738744178832,2.15896949,2764.6,2764.0,8.0818]
[1738744179026,0.5346,2764.5,2764.0,8.0818]
[1738744179226,2.15353982,2764.3,2764.0,3.2078]
[1738744179632,0.5384,2764.2,2764.0,3.2078]
[1738744179934,0.5384,2764.2,2763.6,0.5461]
[1738744180135,0.5384,2764.2,2763.6,3.7539]
[1738744180735,0.5384,2764.2,2763.5,4.874]
[1738744181235,3.2078,2764.1,2763.5,4.874]
[1738744182531,3.2078,2764.1,2763.3,3.7453]
[1738744183329,3.2078,2764.1,2763.7,0.01503151]
[1738744184337,3.2078,2764.1,2763.9,0.01503151]
[1738744184736,0.5384,2764.2,2763.9,0.01503151]
[1738744185238,3.2078,2764.4,2763.9,0.01503151]
[1738744185432,3.2078,2764.4,2764.1,0.01503151]
[1738744186532,3.2078,2764.4,2764.2,0.01503151]
[1738744187437,3.2078,2764.4,2764.3,0.01503151]
[1738744188930,1.0992,2764.5,2764.3,0.01503151]
[1738744189240,0.00542967,2764.6,2764.3,3.22283151]
[1738744189427,0.00542967,2764.6,2764.4,0.01503151]
[1738744189626,0.00542967,2764.6,2764.4,0.56123151]
[1738744190033,0.00542967,2764.6,2764.5,0.5634]
[1738744190227,0.00542967,2764.6,2764.5,3.5414]
[1738744190735,0.00542967,2764.6,2764.5,3.55643151]
[1738744194645,0.00542967,2764.6,2764.5,2.99303151]
[1738744198539,0.00542967,2764.6,2764.5,7.86703151]
[1738744198739,0.00542967,2764.6,2764.5,12.86703151]
[1738744198936,1.1495,2765.6,2764.5,12.86703151]
[1738744199238,0.5555,2765.5,2765.0,3.2078]
[1738744199536,0.5555,2765.5,2765.2,0.01503151]
[1738744199743,0.5555,2765.5,2765.2,2.99303151]
[1738744200038,0.5555,2765.5,2765.3,3.2078]
[1738744200642,0.5555,2765.5,2765.2,2.99303151]
[1738744200643,2.70903982,2765.5,2765.2,2.978]
[1738744200941,3.2078,2765.3,2764.0,3.2078]
[1738744201138,2.15353982,2764.7,2764.0,6.1858]
[1738744201340,1.1184,2764.6,2764.0,6.1858]
[1738744202041,1.1184,2764.6,2764.3,3.2078]
[1738744202545,0.5429,2764.6,2764.3,3.2078]
[1738744202844,0.5429,2764.6,2764.4,0.5743]
[1738744204043,0.5429,2764.6,2764.3,3.2078]
[1738744204341,0.5315,2764.5,2764.3,3.2078]
[1738744205537,0.5315,2764.5,2764.0,2.98342967]
[1738744205742,2.70900873,2764.3,2764.0,0.00542967]
[1738744205944,0.5554,2764.2,2764.0,0.00542967]
[1738744209248,0.5554,2764.2,2763.5,6.1858]
[1738744209739,0.5554,2764.2,2763.6,0.5441]
[1738744210347,0.56082967,2764.2,2763.6,0.54952967]
[1738744211541,0.56082967,2764.2,2763.6,0.00542967]
[1738744211737,2.70900873,2764.0,2763.6,0.00542967]
[1738744212042,1.774,2763.9,2763.6,0.00542967]
[1738744212243,5.91680873,2763.7,2763.1,2.978]
[1738744212548,2.3428,2763.9,2762.3,0.326]
[1738744212549,5.91680873,2763.4,2762.3,0.326]
[1738744212752,5.91680873,2763.1,2762.3,0.326]
[1738744213147,3.2078,2763.1,2762.3,0.326]
[1738744213345,3.94700873,2763.7,2763.0,3.2078]
[1738744213546,3.94700873,2763.7,2762.2,8.72120873]
[1738744213547,3.94700873,2763.7,2763.1,0.5854]
[1738744213847,40.8,2763.6,2762.7,3.2078]
[1738744214251,3.94700873,2763.7,2762.7,3.2078]
[1738744215048,2.70900873,2763.4,2762.7,3.2078]
[1738744215443,2.70900873,2763.1,2762.7,3.2078]
[1738744215650,1.238,2763.7,2762.4,0.33142967]
[1738744215651,2.70900873,2762.8,2762.4,0.00542967]
[1738744216042,2.70900873,2762.5,2762.4,0.00542967]
[1738744216248,2.70900873,2762.5,2762.1,3.2078]
[1738744216448,2.70900873,2762.2,2761.6,3.5338]
[1738744216648,0.5709,2762.1,2761.6,3.2078]
[1738744217345,2.70900873,2761.9,2761.2,3.2078]
[1738744218748,3.2078,2762.0,2761.2,3.2078]
[1738744219944,0.00542967,2762.1,2761.5,3.2078]
[1738744220254,0.00542967,2762.1,2761.6,0.5539]
[1738744220450,0.00542967,2762.1,2761.7,0.531]
[1738744220653,0.00542967,2762.1,2761.8,3.2078]
[1738744222458,0.5838,2762.9,2761.8,5.91680873]
[1738744222646,5.91680873,2763.1,2762.4,3.2078]
[1738744222844,3.2078,2763.1,2762.5,0.5376]
[1738744223052,3.94700873,2763.4,2762.7,3.2078]
[1738744223249,1.238,2763.4,2762.7,3.2078]
[1738744223551,4.3523,2763.6,2762.7,3.2078]
[1738744223552,3.2078,2763.6,2762.8,4.874]
[1738744223759,0.00542967,2763.3,2763.0,2.70900873]
[1738744224059,2.70900873,2764.3,2763.2,3.2078]
[1738744224357,3.2078,2764.8,2764.1,3.2078]
[1738744225255,2.7144384,2764.7,2764.2,0.00542967]
[1738744228053,0.00542967,2764.7,2764.2,0.00542967]
[1738744228358,0.00542967,2764.7,2764.5,3.2078]
[1738744228559,0.00542967,2764.7,2764.6,0.5726]
[1738744228953,3.2078,2765.3,2764.6,0.5726]
[1738744229754,3.2078,2765.3,2764.6,3.28160873]
[1738744229957,3.2078,2766.0,2764.9,2.70900873]
[1738744230155,0.00542967,2765.2,2765.0,4.874]
[1738744230455,3.2078,2766.4,2765.1,10.79080873]
[1738744230660,3.2078,2766.4,2765.7,3.2078]
[1738744231557,0.00542967,2766.3,2765.8,7.5884384]
[1738744231856,0.00542967,2766.3,2765.8,4.87942967]
[1738744232057,0.00542967,2766.3,2766.0,3.2078]
[1738744232261,0.00542967,2766.3,2765.8,4.87942967]
[1738744233057,0.00542967,2766.3,2765.8,0.00542967]
[1738744233058,3.21322967,2766.3,2765.8,0.00542967]
[1738744233358,3.21322967,2766.3,2765.8,7.5884384]
[1738744233560,3.21322967,2766.3,2765.8,8.1551384]
[1738744234753,0.00542967,2766.3,2766.1,2.70900873]
[1738744234956,0.00542967,2766.3,2766.2,0.5519]
[1738744235161,3.2078,2767.5,2766.2,5.5519]
[1738744235359,3.2078,2767.5,2766.5,3.2078]
[1738744235549,3.2078,2767.2,2766.5,3.2078]
[1738744236356,0.00542967,2767.1,2766.5,3.2078]
[1738744237661,0.00542967,2767.1,2766.6,0.5765]
[1738744240755,0.00542967,2767.1,2766.8,3.2078]
[1738744244259,0.00542967,2767.1,2766.9,0.578]
[1738744248075,0.00542967,2767.1,2766.9,0.904]
[1738744248271,0.00542967,2767.1,2766.9,0.326]
[1738744249171,2.7144384,2767.1,2766.5,3.2078]
[1738744249365,3.2718384,2767.1,2766.5,3.2078]
[1738744249566,3.78593,2766.6,2765.8,3.21322967]
[1738744249771,3.2078,2766.3,2765.8,0.00542967]
[1738744250570,1.0457,2766.5,2765.8,3.21322967]
[1738744250886,1.0457,2766.5,2765.8,0.00542967]
[1738744251781,1.0457,2766.5,2765.8,3.21322967]
[1738744251979,3.2078,2766.3,2765.8,0.00542967]
[1738744252178,3.25630873,2766.2,2765.8,0.00542967]
[1738744252570,8.25630873,2766.2,2765.8,0.00542967]
[1738744252779,5.91680873,2765.9,2764.8,3.2078]
[1738744253184,0.5134,2765.8,2764.8,3.2078]
[1738744253382,3.2078,2765.5,2764.8,3.2078]
[1738744253584,3.2078,2765.5,2764.1,5.2]
[1738744253585,2.70900873,2765.3,2764.1,2.70900873]
[1738744253788,2.70900873,2765.3,2764.0,3.2078]
[1738744253789,3.2078,2765.2,2764.0,3.2078]
[1738744253981,2.7144384,2765.0,2764.4,0.00542967]
[1738744254185,3.7867,2764.9,2764.4,0.00542967]
[1738744254386,0.5789,2764.9,2764.4,0.00542967]
[1738744254685,0.00542967,2765.0,2764.4,0.00542967]
[1738744254884,0.00542967,2765.0,2764.6,3.2078]
[1738744255690,0.00542967,2765.0,2764.9,3.2078]
[1738744255988,0.00542967,2765.0,2764.6,3.2078]
[1738744263895,2.7144384,2765.0,2764.6,3.2078]
[1738744264091,0.5632,2764.9,2764.6,3.2078]
[1738744264290,0.00542967,2765.0,2764.6,3.2078]
[1738744265993,5.91680873,2764.7,2764.4,0.00542967]
[1738744266196,5.91680873,2764.7,2763.7,3.2078]
[1738744266197,1.7992,2764.6,2763.7,3.2078]
[1738744266395,5.91680873,2764.4,2763.7,3.2078]
[1738744266897,5.91680873,2764.1,2763.3,0.5327]
[1738744267097,3.2078,2764.1,2763.3,0.5327]
[1738744267294,2.70900873,2764.4,2763.3,3.7405]
[1738744267497,2.70900873,2764.4,2763.4,0.00542967]
[1738744267799,3.2078,2764.2,2763.4,0.00542967]
[1738744269704,2.70900873,2764.1,2763.4,0.00542967]
[1738744269894,3.2078,2764.2,2763.4,0.00542967]
[1738744270701,2.70900873,2764.1,2763.4,0.00542967]
[1738744270902,3.2078,2763.7,2763.4,0.00542967]
[1738744271201,1.8223,2763.6,2762.8,3.2078]
[1738744271399,3.2078,2763.4,2762.8,3.2078]